[Event "Deutschland Grand Prix 2022"]
[Site "Dortmund"]
[Date "2022.07.19"]
[Round "3.2"]
[White "McShane, Luke J"]
[Black "Svane, Rasmus"]
[Result "1/2-1/2"]
[ECO "C85"]
[WhiteElo "2649"]
[BlackElo "2649"]
[Annotator "TA"]
[PlyCount "99"]
[EventDate "2022.07.17"]
[EventType "tourn"]
[EventCountry "GER"]
[SourceTitle "playchess.com"]
[Source "ChessBase"]
[SourceQuality "1"]
[TimeControl "40/5400+30:1800+30"]

{[%evp 14,99,22,12,12,10,13,0,-12,-23,-21,-29,-33,-31,-33,-43,-29,-31,-33,-79,-62,-52,-53,-59,-37,-58,-25,-32,-41,-39,-37,-61,-54,-54,0,0,0,0,39,37,37,37,35,45,35,0,0,0,-9,0,0,-45,-16,-117,12,7,7,0,0,0,22,-32,-45,-55,-60,-173,-158,-264,0,0,0,0,0,0,0,0,0,0,0,0,0,0,0,0,0,0,0,0]} 1. e4 {[%emt 0:00:11]} e5 {[%emt 0:00:05]} 2. Nf3 {[%emt 0:00:10]} Nc6 {[%emt 0:00:03]} 3. Bb5 {[%emt 0:00:08]} a6 {[%emt 0:00:04]} 4. Ba4 {[%emt 0:00:09]} Nf6 {[%emt 0:00:04]} 5. O-O {[%emt 0:00:09]} Be7 {[%emt 0:00:04]} 6. Bxc6 {[%emt 0:00:08]} dxc6 {[%emt 0:00:03]} 7. d3 {[%emt 0:00:07]} Bd6 {[%emt 0:00:06]} 8. Nbd2 {[%emt 0:02:56]} Be6 {[%emt 0:00:13] C85: Closed Ruy Lopez: Deferred Exchange Variation.} 9. b3 {[%emt 0:09:16]} Nd7 {[%emt 0:06:31]} 10. Bb2 {[%emt 0:07:25]} Qe7 {[%emt 0:05:20]} 11. d4 {[%emt 0:04:52]} f6 {[%emt 0:10:45]} 12. Qe2 {[%emt 0:01:08]} O-O-O {[%emt 0:03:25] [#]} 13. Rfe1 $146 {[%emt 0:05:01]} ({Predecessor:} 13. c4 exd4 14. Nxd4 Rhe8 15. Rfe1 Ne5 16. Rad1 Bc5 17. Nf1 Bg4 18. f3 Be6 19. Ne3 {0-1 (46) Kosakowski,J (2429)-Golenia,J (2102) Lodz 2021}) 13... Rhe8 {[%emt 0:15:32]} 14. c3 {[%emt 0:21:23]} exd4 {[%emt 0:21:34]} 15. cxd4 {[%emt 0:06:33]} f5 {[%emt 0:02:21]} 16. a3 {[%emt 0:02:00]} (16. exf5 $15 Bxf5 17. Qxe7 Bxe7 18. Nc4) 16... fxe4 {[%emt 0:04:04]} 17. Nxe4 {[%emt 0:00:05][%cal Od4d5]} Bf4 {[%emt 0:05:17] A strong pair of Bishops.} 18. Qc2 {[%emt 0:08:17]} Qf8 {[%emt 0:02:45]} 19. Nc5 {[%emt 0:06:21]} Nxc5 {[%emt 0:05:59]} 20. dxc5 {[%emt 0:00:07]} g6 {[%emt 0:01:36]} 21. b4 {[%emt 0:08:13]} Bd5 {[%emt 0:02:10] [#] ...Bxf3 is the strong threat.} 22. Qc3 {[%emt 0:02:39]} Qf5 {[%emt 0:05:04]} 23. h3 {[%emt 0:04:26]} h5 {[%emt 0:02:29]} (23... Rf8 $15) 24. Nh4 $11 {[%emt 0:02:46][%cal Bf3h4,Bh4g6,Bg6e7][%mdl 32]} Qf7 {[%emt 0:01:35]} 25. Qf6 {[%emt 0:00:33]} g5 {[%emt 0:01:45]} 26. Ng6 {[%emt 0:00:53]} Bd2 {[%emt 0:02:06]} 27. Re7 {[%emt 0:07:01]} Qxf6 {[%emt 0:01:30]} 28. Bxf6 {[%emt 0:00:03]} Be4 {[%emt 0:00:15]} 29. Rg7 {[%emt 0:00:56]} Rd3 {[%emt 0:00:27]} 30. Ne7+ {[%emt 0:00:31]} Kb8 {[%emt 0:00:02]} 31. f3 {[%emt 0:00:41]} Bd5 {[%emt 0:00:32]} 32. Be5 {[%emt 0:00:35]} Ka8 {[%emt 0:01:27]} 33. Kh2 {[%emt 0:00:29]} (33. Nxd5 $11 Rxd5 34. Bf6) 33... Re3 {[%emt 0:00:38]} (33... g4 $17 34. fxg4 hxg4) 34. Nxd5 {[%emt 0:00:41]} cxd5 {[%emt 0:00:02]} 35. Rd1 {[%emt 0:00:31]} ({Don't blunder} 35. Bxc7 $2 Bc3 36. Rxg5 Bxa1 $19) 35... R8xe5 {[%emt 0:01:01]} 36. Rxd2 {[%emt 0:00:03][%mdl 4096] Endgame KRR-KRR} c6 {[%emt 0:00:09]} 37. h4 {[%emt 0:00:33]} (37. Rh7 $11) 37... gxh4 $15 {[%emt 0:00:15]} 38. Rd4 {[%emt 0:00:02]} Rxa3 {[%emt 0:00:19]} 39. Rg8+ {[%emt 0:01:12]} (39. Rxh4 $15 Ka7 40. g4) 39... Ka7 $19 {[%emt 0:00:06]} 40. Rf4 {[%emt 0:00:15] [#]} (40. Kh3 $17) 40... Re7 $2 {[%emt 0:01:54]} ({Black should play} 40... a5 $1 $19 {Threatens to win with ...Ra4.} 41. Rf7 Rb3 42. bxa5 Rb4) 41. Rff8 $11 {[%emt 0:21:49][%csl Gg8][%cal Rf8a8] The position is equal.} b5 {[%emt 0:00:16]} 42. f4 {[%emt 0:00:59] Black must now prevent f5.} Rg3 $1 {[%emt 0:07:43] aiming for ...Rxg8.} 43. Ra8+ {[%emt 0:04:47]} ({Not} 43. Rxg3 $2 hxg3+ 44. Kh3 a5 $19) 43... Kb7 {[%emt 0:00:06] And now ...Rxg8 would win.} 44. Rgb8+ {[%emt 0:00:05]} Kc7 {[%emt 0:00:06]} 45. Rh8 {[%emt 0:01:05][%cal Ra8a7]} Kb7 {[%emt 0:00:33] Prevents Ra7+.} 46. f5 {[%emt 0:01:30]} Re2 {[%emt 0:05:23]} 47. Rab8+ {[%emt 0:00:36]} Ka7 {[%emt 0:00:12]} 48. Ra8+ {[%emt 0:00:08]} Kb7 {[%emt 0:00:02]} 49. Rab8+ {[%emt 0:00:17]} Ka7 {[%emt 0:00:03]} 50. Ra8+ {[%emt 0:00:07] Weighted Error Value: White=0.17 (very precise) /Black=0.18 (very precise)} 1/2-1/2

[Event "Deutschland Grand Prix 2022"]
[Site "Dortmund"]
[Date "2022.07.19"]
[Round "3.3"]
[White "Bluebaum, Matthias"]
[Black "Navara, David"]
[Result "1/2-1/2"]
[ECO "D11"]
[WhiteElo "2673"]
[BlackElo "2688"]
[Annotator "TA"]
[PlyCount "57"]
[EventDate "2022.07.17"]
[EventType "tourn"]
[EventCountry "GER"]
[SourceTitle "playchess.com"]
[Source "ChessBase"]
[SourceQuality "1"]
[TimeControl "40/5400+30:1800+30"]

{[%evp 9,57,15,13,13,18,-1,0,0,45,35,62,67,69,62,54,46,53,15,70,85,78,87,80,29,40,52,46,40,49,41,40,33,26,8,26,0,0,0,0,0,0,0,0,0,0,0,0,0,0,0]} 1. d4 {[%emt 0:00:04]} d5 {[%emt 0:00:04]} 2. c4 {[%emt 0:00:13]} c6 {[%emt 0:00:03]} 3. Nf3 {[%emt 0:01:03]} Nf6 {[%emt 0:00:05]} 4. Qc2 {[%emt 0:00:17]} g6 {[%emt 0:00:13]} 5. e3 {[%emt 0:02:00]} Bg7 {[%emt 0:00:09]} 6. Nc3 {[%emt 0:00:37] D11: Slav Defence: 3 Nf3 sidelines and 3...Nf6 4 e3 Bg4.} O-O {[%emt 0:00:23][%cal Oc6c5]} 7. h3 {[%emt 0:01:58] [#] 7.Be2 is a critical line.} c5 $146 {[%emt 0:03:10]} ({Predecessor:} 7... a6 8. a3 dxc4 9. Bxc4 b5 10. Ba2 Nbd7 11. e4 Bb7 12. Be3 Rc8 13. b4 Nb6 {1-0 (44) Manolache,M (2485)-Nastore,P (2306) Bucharest 2022}) 8. dxc5 {[%emt 0:04:45]} Na6 {[%emt 0:07:58]} 9. cxd5 {[%emt 0:09:08] [#] Hoping for Bxa6.} Nxd5 {[%emt 0:00:30]} 10. Nxd5 {[%emt 0:02:08]} Qxd5 {[%emt 0:00:13]} 11. Bxa6 {[%emt 0:01:04]} bxa6 {[%emt 0:00:16]} 12. e4 {[%emt 0:00:09] Against Bf5} Qc6 {[%emt 0:02:19]} 13. O-O {[%emt 0:05:07]} Rb8 {[%emt 0:08:19]} (13... Bb7 $11) 14. Rb1 $1 $14 {[%emt 0:06:48]} Rb4 {[%emt 0:02:15]} 15. Re1 {[%emt 0:02:28]} Bb7 {[%emt 0:04:20][%cal Rb4e4,Bc8b7,Bb7e4,Be4d5][%mdl 32]} 16. Bd2 {[%emt 0:09:49]} (16. Bg5 $16) 16... Rxe4 $11 {[%emt 0:00:50]} 17. Rxe4 {[%emt 0:01:03]} Qxe4 {[%emt 0:00:09]} 18. Qxe4 {[%emt 0:00:16]} Bxe4 {[%emt 0:00:07] A strong pair of Bishops.} 19. Re1 {[%emt 0:00:02]} Bd5 {[%emt 0:11:06]} 20. Rxe7 {[%emt 0:05:46]} Bxb2 {[%emt 0:00:31]} 21. Bf4 {[%emt 0:05:29]} Rc8 {[%emt 0:11:00]} 22. Bd6 {[%emt 0:05:47]} Ba3 {[%emt 0:23:45] The position is equal.} 23. Rxa7 {[%emt 0:01:05]} Bxc5 {[%emt 0:00:44]} 24. Bxc5 {[%emt 0:00:54]} Rxc5 {[%emt 0:00:08]} 25. Rxa6 {[%emt 0:00:10] KRB-KRN} Rc1+ {[%emt 0:00:39]} 26. Kh2 {[%emt 0:00:06]} Rc2 {[%emt 0:00:14][%csl LRa2,LRf2]} 27. Kg3 {[%emt 0:00:26]} Rxa2 {[%emt 0:00:07]} 28. Rxa2 {[%emt 0:00:04]} Bxa2 {[%emt 0:00:06]} 29. Nd4 {[%emt 0:00:06] Weighted Error Value: White=0.09 (flawless) /Black=0.09 (flawless)} 1/2-1/2

[Event "Deutschland Grand Prix 2022"]
[Site "Dortmund"]
[Date "2022.07.20"]
[Round "4.1"]
[White "Svane, Rasmus"]
[Black "Bluebaum, Matthias"]
[Result "1/2-1/2"]
[ECO "C42"]
[WhiteElo "2649"]
[BlackElo "2673"]
[Annotator "TA"]
[PlyCount "71"]
[EventDate "2022.07.17"]
[EventType "tourn"]
[EventCountry "GER"]
[SourceTitle "playchess.com"]
[Source "ChessBase"]
[SourceQuality "1"]
[TimeControl "40/5400+30:1800+30"]

{[%evp 16,71,28,35,29,30,32,15,24,16,12,15,11,8,16,6,10,6,6,8,18,13,27,29,31,27,29,28,24,22,35,31,27,9,14,0,0,0,0,0,12,0,0,0,0,0,0,0,0,0,0,0,5,0,0,0,16,0]} 1. e4 {[%emt 0:00:03]} e5 {[%emt 0:00:23]} 2. Nf3 {[%emt 0:00:36]} Nf6 {[%emt 0:00:04]} 3. Nxe5 {[%emt 0:00:22]} d6 {[%emt 0:00:11]} 4. Nf3 {[%emt 0:00:05]} Nxe4 {[%emt 0:00:04]} 5. d4 {[%emt 0:00:11]} d5 {[%emt 0:00:25]} 6. Bd3 {[%emt 0:00:07]} Nc6 {[%emt 0:00:48]} 7. O-O {[%emt 0:01:17]} Be7 {[%emt 0:00:51]} 8. Nbd2 $1 {[%emt 0:00:30][%mdl 4] outshines the older 8.c4.} Bf5 {[%emt 0:01:09]} 9. Re1 {[%emt 0:01:04][%cal Rd2e4]} Nxd2 {[%emt 0:00:29] C42: Petroff Defence: 3 Nxe5 and unusual White 3rd moves.} 10. Qxd2 {[%emt 0:00:51]} Qd7 {[%emt 0:00:03]} 11. c3 {[%emt 0:25:35]} O-O {[%emt 0:05:14]} 12. Bxf5 {[%emt 0:03:40]} Qxf5 {[%emt 0:01:11]} 13. Qf4 {[%emt 0:00:11]} Qd7 {[%emt 0:01:23]} 14. Qg3 {[%emt 0:01:37]} Bd6 {[%emt 0:04:03]} 15. Bf4 {[%emt 0:00:48]} Bxf4 {[%emt 0:04:49]} 16. Qxf4 {[%emt 0:01:45]} Rae8 {[%emt 0:06:03]} 17. h4 {[%emt 0:01:15]} h6 {[%emt 0:10:12] [#]} 18. g3 $146 {[%emt 0:09:15]} ({Predecessor:} 18. h5 Re6 19. Rxe6 fxe6 20. Qe3 Rf6 21. Ne5 Nxe5 22. dxe5 Rf8 23. Qxa7 Qb5 24. b4 {½-½ (50) Petr,M (2508)-Krejci,J (2539) Zlin 2021}) 18... Nd8 {[%emt 0:03:59]} 19. Ne5 {[%emt 0:06:44][%cal Bf3e5,Be5g4,Bg4e3][%mdl 32]} Qd6 {[%emt 0:04:34]} 20. Qf3 {[%emt 0:00:27]} Re7 {[%emt 0:03:34]} 21. Re3 {[%emt 0:03:09]} Rfe8 {[%emt 0:02:35]} 22. Rae1 {[%emt 0:00:50]} f6 {[%emt 0:11:14]} 23. Ng4 {[%emt 0:11:31]} c6 {[%emt 0:01:48]} 24. Qf5 {[%emt 0:04:17]} Nf7 {[%emt 0:06:06] The position is equal.} 25. b3 {[%emt 0:09:27]} Rxe3 {[%emt 0:05:25]} 26. Rxe3 {[%emt 0:01:14]} Rxe3 {[%emt 0:00:07]} 27. Nxe3 $11 {[%emt 0:00:10][%mdl 4096] [#] Endgame Qc8+ is the strong threat. KQN-KQN} Qe7 {[%emt 0:00:10]} 28. Qc8+ {[%emt 0:05:34]} Kh7 $1 {[%emt 0:00:20]} 29. Qf5+ {[%emt 0:00:34]} g6 {[%emt 0:02:08]} 30. Qf4 {[%emt 0:01:01][%cal Oh4h5]} h5 {[%emt 0:00:44]} 31. c4 {[%emt 0:01:40]} dxc4 {[%emt 0:00:11]} 32. bxc4 {[%emt 0:00:56]} Qd6 {[%emt 0:03:16]} 33. Qe4 {[%emt 0:00:15]} Qd7 {[%emt 0:00:31]} 34. Qf4 {[%emt 0:02:10]} Qd6 {[%emt 0:00:04]} 35. Qe4 {[%emt 0:00:04] And now Ng2 would win.} Qd7 {[%emt 0:00:03]} 36. Qf4 {[%emt 0:02:24] Weighted Error Value: White=0.04 (flawless) /Black=0.02 (flawless)} 1/2-1/2

[Event "Deutschland Grand Prix 2022"]
[Site "Dortmund"]
[Date "2022.07.20"]
[Round "4.2"]
[White "L'Ami, Erwin"]
[Black "McShane, Luke J"]
[Result "1/2-1/2"]
[ECO "E11"]
[WhiteElo "2634"]
[BlackElo "2649"]
[Annotator "TA"]
[PlyCount "171"]
[EventDate "2022.07.17"]
[EventType "tourn"]
[EventCountry "GER"]
[SourceTitle "playchess.com"]
[Source "ChessBase"]
[SourceQuality "1"]
[TimeControl "40/5400+30:1800+30"]

{[%evp 14,171,31,24,33,33,31,19,33,23,30,18,21,25,22,10,12,9,14,8,8,-2,-3,-10,6,-18,-6,-11,-2,-21,-19,-26,0,0,0,0,0,0,0,0,0,0,0,0,0,-2,0,0,0,-8,0,0,0,0,0,0,0,-24,-8,-40,-40,-49,-39,-75,-39,-66,-39,-94,-41,-55,-33,-75,-54,-90,-54,-82,-86,-91,-93,-97,-92,-108,-106,-113,-110,-111,-102,-105,-104,-134,-79,-79,-79,-150,-147,-143,-144,-139,-139,-149,-78,-78,-78,-78,-78,-78,-8,-78,-78,-78,-78,-78,-8,-78,-8,-8,-8,-8,-8,-78,-78,-78,0,-78,0,-78,0,0,0,0,0,0,0,0,0,-62,-62,-62,-62,-62,-62,-62,-62,-62,-62,-62,0,0,0,0,0,0,0,0,0,0,0,0,0,0]} 1. d4 {[%emt 0:00:06]} Nf6 {[%emt 0:00:09]} 2. c4 {[%emt 0:00:08]} e6 {[%emt 0:00:06]} 3. Nf3 {[%emt 0:00:48]} Bb4+ {[%emt 0:00:09]} 4. Bd2 {[%emt 0:00:09]} Qe7 {[%emt 0:00:06]} 5. g3 {[%emt 0:01:11]} Nc6 {[%emt 0:00:14]} 6. Nc3 {[%emt 0:00:34]} Bxc3 $1 {[%emt 0:00:29] 6...Bxc3 is better than 6...0-0.} 7. Bxc3 {[%emt 0:00:08]} Ne4 {[%emt 0:00:04]} 8. Qc2 {[%emt 0:01:28]} Nxc3 {[%emt 0:00:15] E11: Bogo-Indian.} 9. Qxc3 {[%emt 0:00:12]} Qb4 {[%emt 0:02:23]} 10. Kd2 {[%emt 0:01:00]} b6 {[%emt 0:04:23]} 11. Bg2 {[%emt 0:09:41]} Bb7 {[%emt 0:00:13]} 12. Rhd1 {[%emt 0:13:06]} (12. Ne5 {is more complex.} Qd6 13. Rhd1 Nxe5 14. Bxb7 Rb8 15. Bg2) 12... Qxc3+ {[%emt 0:16:57]} 13. Kxc3 {[%emt 0:00:13] [#]} Ne7 $146 {[%emt 0:00:05]} ({Predecessor:} 13... a5 14. b3 d6 15. Ne1 O-O-O 16. Nd3 Rhe8 17. f4 Ne7 18. Bxb7+ Kxb7 19. e4 f6 {1-0 (33) Lazavik,D (2440)-Grabinsky,A (2423) Chess.com INT 2021}) 14. Ne1 {[%emt 0:08:10]} Bxg2 {[%emt 0:13:06]} 15. Nxg2 {[%emt 0:00:17]} d5 {[%emt 0:00:12]} 16. cxd5 {[%emt 0:06:13]} Nxd5+ {[%emt 0:00:43]} 17. Kb3 {[%emt 0:01:38]} O-O-O {[%emt 0:02:51]} 18. Rac1 {[%emt 0:11:32]} Rd7 {[%emt 0:12:54]} 19. Rc2 {[%emt 0:05:01]} Kb7 {[%emt 0:05:53]} 20. Ne1 {[%emt 0:06:19]} Ne7 {[%emt 0:09:37]} 21. Rdc1 {[%emt 0:02:02]} f6 {[%emt 0:02:10]} 22. e3 {[%emt 0:02:38]} g5 {[%emt 0:02:41]} 23. Nf3 {[%emt 0:03:17]} h5 {[%emt 0:03:00]} 24. h4 {[%emt 0:01:42]} g4 {[%emt 0:00:07]} 25. Nd2 {[%emt 0:01:28]} e5 {[%emt 0:02:27]} 26. Ne4 {[%emt 0:03:09]} Rf8 {[%emt 0:01:57]} 27. dxe5 {[%emt 0:01:02]} fxe5 {[%emt 0:00:05]} 28. a3 {[%emt 0:00:36]} Nf5 {[%emt 0:06:58]} 29. Ka2 {[%emt 0:03:44]} Rff7 {[%emt 0:07:23]} 30. Ng5 {[%emt 0:08:58]} Rfe7 {[%emt 0:00:58]} 31. Ne4 {[%emt 0:00:08]} Rf7 {[%emt 0:01:36]} 32. Ng5 {[%emt 0:00:15]} Rg7 {[%emt 0:00:30]} 33. Ne4 {[%emt 0:01:41]} Nd6 {[%emt 0:01:24]} 34. Nc3 {[%emt 0:01:53]} ({Much worse is} 34. Nf6 Rdf7 35. Nd5 (35. Nxh5 Rh7 $17) 35... Ne4 $17) 34... Rgf7 {[%emt 0:00:15]} 35. b3 {[%emt 0:01:58]} Ne8 {[%emt 0:01:48]} 36. Kb2 {[%emt 0:00:53]} Nf6 {[%emt 0:00:15]} 37. Re1 {[%emt 0:01:33]} Rd3 {[%emt 0:00:43]} 38. Rec1 {[%emt 0:02:07]} a6 {[%emt 0:02:04]} 39. Re1 {[%emt 0:01:23]} Rfd7 {[%emt 0:00:23]} 40. Rf1 {[%emt 0:00:50]} (40. b4 $15) 40... R7d6 {[%emt 0:02:09]} (40... c5 $17) 41. Rfc1 {[%emt 0:05:27][%cal Oc3e4]} c6 {[%emt 0:04:14]} 42. Rf1 {[%emt 0:01:58]} b5 {[%emt 0:02:30]} 43. Re2 {[%emt 0:02:57]} a5 {[%emt 0:03:48]} 44. f3 {[%emt 0:03:56]} Rd2+ {[%emt 0:09:12]} (44... Kb6 {keeps more tension.} 45. f4 exf4 46. Rxf4 Nd5) 45. Rxd2 {[%emt 0:01:49]} Rxd2+ $17 {[%emt 0:00:01][%mdl 4096] Endgame KRN-KRN} 46. Kc1 {[%emt 0:00:15]} Rd3 {[%emt 0:02:20][%csl LRc3,LRe3]} 47. Kc2 {[%emt 0:01:37]} Rxe3 {[%emt 0:00:05]} 48. fxg4 {[%emt 0:00:08]} Nxg4 {[%emt 0:00:04]} 49. Rf5 {[%emt 0:01:07]} Rxg3 {[%emt 0:00:09] [#] And now ...Ne3+ would win.} 50. Rxh5 {[%emt 0:00:17]} Rh3 {[%emt 0:00:04]} 51. a4 {[%emt 0:02:14]} b4 {[%emt 0:04:28]} (51... Kb6 $142 {Threatens to win with ...Kc5.} 52. Ne4 Ne3+ 53. Kb2 Rh2+ 54. Kc1 bxa4 55. bxa4 Nd5 56. Rxe5 Rxh4) 52. Ne4 {[%emt 0:00:07]} Kb6 {[%emt 0:00:31]} 53. Rh8 {[%emt 0:02:39]} (53. Rg5 $142 Ne3+ 54. Kb2) 53... Ne3+ {[%emt 0:02:35]} 54. Kb2 {[%emt 0:00:56]} Nf5 {[%emt 0:01:09]} 55. h5 {[%emt 0:00:09]} Rh4 {[%emt 0:00:31]} 56. Nd2 {[%emt 0:01:18]} e4 {[%emt 0:02:20] Against Nf3} (56... Rh2 $142 57. Kc1 Rh1+ 58. Kb2 Nd6) 57. Nxe4 {[%emt 0:04:22]} Rxe4 {[%emt 0:03:06]} 58. h6 {[%emt 0:00:07]} Nxh6 {[%emt 0:01:54]} 59. Rxh6 {[%emt 0:00:06] KR-KR} Kc5 {[%emt 0:00:09]} (59... Re2+ $17 60. Kc1 Kc5) 60. Rh2 {[%emt 0:00:50]} (60. Rh5+ $1 $11 {keeps the balance.} Kb6 61. Kc2) 60... Kd5 {[%emt 0:00:50]} 61. Rd2+ {[%emt 0:00:15]} Rd4 {[%emt 0:00:32]} 62. Rh2 {[%emt 0:00:06]} Rf4 {[%emt 0:00:39]} (62... Kd6 $17) 63. Rd2+ {[%emt 0:00:16]} (63. Rh5+ $11 Kd4 64. Rxa5) 63... Ke4 {[%emt 0:00:28]} (63... Kc5 $17) 64. Rc2 {[%emt 0:00:15]} Rf6 {[%emt 0:00:06]} 65. Rc5 {[%emt 0:00:16]} Kd4 {[%emt 0:00:13]} 66. Rc4+ {[%emt 0:00:08]} (66. Rxa5 $11 Rf2+ 67. Kb1) 66... Kd5 {[%emt 0:00:11]} 67. Rc2 {[%emt 0:00:13]} Rf4 {[%emt 0:01:03]} 68. Rd2+ {[%emt 0:00:09]} Rd4 {[%emt 0:00:04]} 69. Rh2 $1 {[%emt 0:00:18]} c5 {[%emt 0:00:02]} (69... Kc5 $17) 70. Rh5+ $11 {[%emt 0:00:13]} Kc6 {[%emt 0:00:05]} 71. Rh6+ {[%emt 0:00:09]} Rd6 {[%emt 0:00:03]} 72. Rh4 {[%emt 0:01:04]} Re6 {[%emt 0:00:06]} 73. Rh2 {[%emt 0:01:04] Inhibits Re2+.} Re5 {[%emt 0:01:11]} 74. Rd2 {[%emt 0:01:23]} (74. Kc2 $11) 74... c4 $1 $15 {[%emt 0:01:13]} 75. bxc4 {[%emt 0:00:07]} Kc5 {[%emt 0:00:02]} 76. Rh2 {[%emt 0:00:41]} Kxc4 {[%emt 0:00:23]} 77. Rh4+ {[%emt 0:00:22]} Kc5 {[%emt 0:00:16]} 78. Kb3 {[%emt 0:00:19]} Re3+ {[%emt 0:01:49]} 79. Kb2 {[%emt 0:00:06]} Ra3 {[%emt 0:00:24]} ({Better is} 79... Kd6 $15 80. Rh7 Re5 81. Rh6+ Kd5) 80. Rh5+ $11 {[%emt 0:00:21] The position is equal.} Kb6 {[%emt 0:00:05]} 81. Rh6+ {[%emt 0:00:06]} Kc7 {[%emt 0:00:26]} 82. Rh5 {[%emt 0:00:05]} Rxa4 {[%emt 0:00:41]} 83. Rh3 {[%emt 0:00:05] Against Ra3} Ra3 {[%emt 0:01:17]} 84. Rxa3 {[%emt 0:00:06]} bxa3+ {[%emt 0:00:02]} 85. Kxa3 {[%emt 0:00:05]} a4 {[%emt 0:00:04]} 86. Kxa4 {[%emt 0:00:03] Black had all chances to win.  Weighted Error Value: White=0.13 (very precise) /Black=0.11 (very precise)} 1/2-1/2